Cogmind - Beta 10.2 @@@ ROGUE MODE // 2021.08.15 @ 11:22:52 Player: EyeSayUgh Result: Self-destructed Performance ------------- Evolutions (4) 2000 Regions Visited (6) 1200 Robots Destroyed (84) 420 Value Destroyed (3095) 3095 Prototype IDs (2) 40 Alien Tech Used (0) 0 Bonus (320) 320 TOTAL SCORE: 7075 Bonus ------- High Alert Combat Kills 60 Follower Combat Kills 260 Cogmind --------- Core Integrity 33/850 Matter 151/300 Energy 18/290 System Corruption 1% Temperature Cool (1113) Movement Core (1200) Ox23 Location -6/Factory Parts ------- > --- POWER (1) -------- Improved Deuterium Engine > --- PROPULSION (4) --- (None) > --- UTILITY (7) ------ High-capacity Storage Unit Long-range Sensor Array Advanced Terrain Scan Processor Advanced Targeting Computer Hardened Heavy Armor Plating > --- WEAPON (3) ------- Phase Cannon > --- INVENTORY (12) --- Improved Deuterium Engine Heavy Deuterium Engine Improved Cooling System Enhanced Optical Array Transmission Jammer Hacking Suite Recalibrator Pulse Rifle Autogun Gauss Cannon Peak State ------------ > --- POWER ------------ Improved Deuterium Engine > --- PROPULSION ------- Light Treads Light Treads Medium Treads Medium Treads > --- UTILITY ---------- High-capacity Storage Unit Long-range Sensor Array Advanced Terrain Scanner Advanced Terrain Scan Processor Advanced Targeting Computer Heavy Reflective Plating > --- WEAPON ----------- Gatling Laser Heavy Plasma Cannon Flak Gun > --- INVENTORY -------- Improved Deuterium Engine Heavy Deuterium Engine Enhanced Optical Array Transmission Jammer Hacking Suite Recalibrator Recalibrator Pulse Rifle Pulse Rifle Phase Cannon Autogun Gauss Cannon [Rating: 56] Favorites ----------- Power Improved Deuterium Engine Engine Improved Deuterium Engine Power Core Light Nuclear Core Propulsion Medium Treads Treads Medium Treads Leg Aluminum Leg Wheel Compact Wheel Utility Improved Light Armor Plating Device Advanced Terrain Scanner Storage High-capacity Storage Unit Processor Advanced Visual Processing Unit Protection Improved Light Armor Plating Weapon Minigun Energy Gun Gatling Laser Energy Cannon Plasma Cannon Ballistic Gun Minigun Ballistic Cannon Flak Cannon Build | -11 -10 -9 -9 -8 -7 -6 ------- Run | Scr Mat Mat Sto Mat Fac Fac Slots Evolved 8 | . . 2 . 2 2 2 Power . | . . . . . . . Propulsion 2 | . . 2 . . . . Utility 5 | . . . . 1 2 2 Weapon 1 | . . . . 1 . . Parts Attached 91 | 8 3 8 17 21 25 9 Power 12 | 1 . 1 4 1 3 2 Engine 10 | 1 . 1 4 . 2 2 Core 2 | . . . . 1 1 . Reactor . | . . . . . . . Propulsion 26 | 4 . 4 6 6 6 . Treads 11 | . . . 1 4 6 . Leg 13 | 2 . 4 5 2 . . Wheel 2 | 2 . . . . . . Hover . | . . . . . . . Flight . | . . . . . . . Utility 20 | . 2 . 2 4 8 4 Device 7 | . 1 . 1 1 3 1 Storage 4 | . 1 . . 2 1 . Processor 3 | . . . . . 2 1 Hackware . | . . . . . . . Protection 6 | . . . 1 1 2 2 Artifact . | . . . . . . . Weapon 33 | 3 1 3 5 10 8 3 Energy Gun 11 | 2 . 2 1 2 3 1 Energy Cannon 8 | . 1 . . 2 3 2 Ballistic Gun 12 | 1 . 1 4 4 2 . Ballistic Cannon 2 | . . . . 2 . . Launcher . | . . . . . . . Special Weapon . | . . . . . . . Impact Weapon . | . . . . . . . Slashing Weapon . | . . . . . . . Piercing Weapon . | . . . . . . . Special Melee Weapon . | . . . . . . . Unidentified Prototypes 2 | . . . 1 1 . . Parts Lost 20 | . . 2 9 . 2 7 Power 1 | . . . 1 . . . Propulsion 8 | . . 1 4 . . 3 Utility 4 | . . . 1 . 2 1 Weapon 7 | . . 1 3 . . 3 Highest Loss Streak 7 | . . 2 6 . 1 7 Average Slot Usage (%) 94 | . 95 89 89 96 99 91 Engine 6 | . 14 11 10 2 4 6 Core 2 | . . . . 6 2 . Treads 18 | . . . 2 13 29 25 Leg 12 | . 28 34 33 20 . . Device 9 | . 10 11 8 4 10 12 Storage 9 | . 12 11 11 13 8 6 Processor 5 | . . . . . 8 13 Protection 6 | . . . 1 9 8 6 Energy Gun 4 | . 9 4 3 1 1 8 Energy Cannon 5 | . 4 6 . 2 12 3 Ballistic Gun 11 | . 14 11 17 17 6 5 Ballistic Cannon 1 | . . . . 4 1 . Naked Turns . | . . . . . . . Heaviest Build 78 | 9 19 19 21 37 75 78 Greatest Support 112 | 20 20 40 40 112 112 96 Greatest Overweight (x) 3 | . . . 3 1 1 1 Average Overweight (x) . | . . . . . . . Largest Inventory Capacity 12 | 4 8 8 8 10 12 12 Average Capacity 9 | 4 7 8 8 8 11 12 Most Carried 12 | 4 7 8 8 9 12 12 Average Carried 8 | 1 6 6 7 7 8 11 Final Capacity 12 | 4 8 8 8 10 12 12 Final Carried 10 | 4 6 5 8 9 10 10 Class Distribution -------------------- 21% | Gunner 17% | Mutant 16% | Scavenger-Skirmisher 14% | Scavenger-Mutant 13% | Tank 12% | Scavenger-Tank 3% | Commander-Skirmisher Dominant Class ---------------- Mutant | -10/Materials Mutant | -9/Materials Scavenger-Mutant | -9/Storage Scavenger-Tank | -8/Materials Gunner | -7/Factory Scavenger-Skirmisher | -6/Factory Resources | -11 -10 -9 -9 -8 -7 -6 ----------- Run | Scr Mat Mat Sto Mat Fac Fac Matter Collected 2464 | 261 73 142 414 559 790 225 Remotely . | . . . . . . . Salvage Created 3559 | 27 81 417 703 506 1186 639 Parts 188 | 3 7 23 46 30 56 23 Haulers Intercepted 2 | . 1 . . . 1 . Recyclers Shooed 5 | . . 1 2 1 . 1 Parts Field Recycled . | . . . . . . . Retrieved Matter . | . . . . . . . Parts Self-Destructed . | . . . . . . . Prevented . | . . . . . . . Kills | -11 -10 -9 -9 -8 -7 -6 ------- Run | Scr Mat Mat Sto Mat Fac Fac Combat Hostiles Destroyed 66 | . . 7 17 11 21 10 Guns 46 | . . 5 17 6 13 5 Cannons 18 | . . 2 . 5 7 4 AOE 1 | . . . . . 1 . Classes Destroyed 11 | 1 2 4 1 1 2 . Worker 2 | . . . . . 1 1 Tunneler 1 | 1 . . . . . . Hauler 2 | . 1 . . . 1 . Recycler 3 | . . 1 1 . 1 . Watcher 10 | . 1 . . 3 3 3 Swarmer 8 | . . . 5 3 . . Grunt 33 | . . 5 7 2 14 5 Duelist 4 | . . 1 . . 1 2 Sentry 15 | . . 1 5 4 3 2 Hunter 2 | . . . . 2 . . Programmer 4 | . . . . . 3 1 Best Kill Streak 8 | 1 1 5 8 3 4 5 Combat Bots Only 8 | . . 4 8 3 3 3 Max Kills in Single Turn 2 | 1 1 1 1 1 2 2 Gunslinging . | . . . . . . . Exploded 1 | . . . . . 1 . Melee . | . . . . . . . Uniques/NPCs Destroyed . | . . . . . . . Combat | -11 -10 -9 -9 -8 -7 -6 -------- Run | Scr Mat Mat Sto Mat Fac Fac Damage Taken 5673 | . 42 670 1025 831 1144 1961 Core 1344 | . . 219 178 61 69 817 Absorbed by Shields . | . . . . . . . Core Remaining (%) 75 | 100 100 . . 88 90 . Volleys Fired 244 | 2 6 24 76 34 61 41 Largest 3 | 2 2 2 2 3 3 3 Hottest 243 | 60 60 80 63 125 212 243 Shots Fired 566 | 4 12 48 133 102 166 101 Gun 423 | 4 12 35 133 71 101 67 Cannon 143 | . . 13 . 31 65 34 Launcher . | . . . . . . . Special . | . . . . . . . Kinetic 352 | 2 6 24 107 88 96 29 Thermal 143 | . . 13 7 14 45 64 Explosive . | . . . . . . . Electromagnetic 71 | 2 6 11 19 . 25 8 Robot Hit Streak 19 | 2 4 14 13 17 19 16 Robot Miss Streak 7 | 1 1 1 3 7 4 3 Penetration Max . | . . . . . . . Secondary Targets 3 | . . 2 1 . . . Max Gunslinging Chain 1 | . . 1 1 . . . Shots Hit Robots 408 | 2 8 38 86 63 128 83 Core Hits 204 | 1 3 15 33 33 71 48 Critical Hits 2 | . . . . . 1 1 Critical Kills . | . . . . . . . Critical Parts Destroyed 2 | . . . . . 1 1 Melee Attacks . | . . . . . . . Impact . | . . . . . . . Slashing . | . . . . . . . Piercing . | . . . . . . . Sneak Attacks . | . . . . . . . Combat Hostiles . | . . . . . . . Follow-up Attacks . | . . . . . . . Damage Inflicted 7217 | 13 116 522 1171 911 2808 1676 Guns 4405 | 13 116 347 1051 529 1405 944 Cannons 2512 | . . 175 . 382 1247 708 Explosions 276 | . . . 120 . 156 . Melee . | . . . . . . . Ramming 24 | . . . . . . 24 Kinetic 3384 | . 64 212 859 716 1208 325 Thermal 2780 | . . 175 134 195 1037 1239 Explosive 75 | . . . . . 75 . Electromagnetic 954 | 13 52 135 178 . 488 88 Impact . | . . . . . . . Slashing . | . . . . . . . Piercing . | . . . . . . . Highest Corruption 4 | . . . . . 4 1 Average Corruption 1 | . . . . . 2 1 Corruption Purged . | . . . . . . . Effects 23 | . . . . . 16 7 Message Errors 6 | . . . . . 5 1 Matter Fused 5 | . . . . . 5 . Heat Flow Errors 1 | . . . . . 1 . Energy Discharges 3 | . . . . . 1 2 Data Loss (minor) 5 | . . . . . 2 3 Targeting Errors 3 | . . . . . 2 1 Overload Shots . | . . . . . . . Overflow Damage 167 | . . . 29 . 127 11 Projectiles 112 | . . . . . 101 11 Explosions 55 | . . . 29 . 26 . Melee . | . . . . . . . Knockbacks 11 | . . . . 6 4 1 Impact 1 | . . . . . . 1 Kinetic 9 | . . . . 5 4 . Secondary 1 | . . . . 1 . . Self-Inflicted Damage 94 | . . . . . 94 . Shots 1 | . . . . . 1 . Rammed 1 | . . . . . . 1 Targets Rammed 1 | . . . . . . 1 Kicked . | . . . . . . . Crushed . | . . . . . . . Highest Temperature 1113 | . . 184 84 464 641 1113 Average Temperature 189 | . . 93 18 121 176 341 Received Heat Transfer 1605 | . . 216 354 90 450 495 Effects 86 | . . . . 3 23 60 Shutdowns 19 | . . . . 3 5 11 Energy Bleed 11 | . . . . . 2 9 Interference 14 | . . . . . 7 7 Matter Decay 7 | . . . . . 1 6 Short Circuit 11 | . . . . . 5 6 Damage (minor) 3 | . . . . . 1 2 Damage (major) 15 | . . . . . 2 13 Damage (core) 6 | . . . . . . 6 Siege Activations . | . . . . . . . Robots Corrupted . | . . . . . . . Combat Hostiles . | . . . . . . . Parts Fried 5 | . 1 . . . 4 . Impact Corruptions . | . . . . . . . Robots Melted 1 | . . . . . . 1 Combat Hostiles 1 | . . . . . . 1 Parts Melted 10 | . . 1 . . 1 8 Heat Transferred 5048 | . . 370 237 333 1861 2247 Parts Sabotaged . | . . . . . . . Parts Stolen . | . . . . . . . Parts Stripped . | . . . . . . . Power Chain Reactions 3 | . . . 2 . 1 . Missiles Intercepted . | . . . . . . . Alert | -11 -10 -9 -9 -8 -7 -6 ------- Run | Scr Mat Mat Sto Mat Fac Fac Peak Influence 491 | 5 47 209 442 341 415 491 Initial 186 | . 3 19 87 186 126 155 Average 196 | . 21 103 154 215 235 231 Maximum Alert Level 2 | . . 1 2 1 2 2 Low Security (%) 49 | 100 100 98 69 47 20 51 Level 1 44 | . . 1 24 52 78 24 Level 2 6 | . . . 5 . . 24 Level 3 . | . . . . . . . Level 4 . | . . . . . . . Level 5 . | . . . . . . . High Security . | . . . . . . . Max Security . | . . . . . . . Squads Dispatched 18 | . . . 6 . 6 6 Investigation 1 | . . . . . 1 . Extermination 5 | . . . . . 3 2 Reinforcement 5 | . . . 3 . 1 1 Assault . | . . . . . . . Garrison 7 | . . . 3 . 1 3 Intercept . | . . . . . . . Construction Impeded 1 | . . . 1 . . . Haulers Reinforced 1 | . . . . . . 1 Stealth | -11 -10 -9 -9 -8 -7 -6 --------- Run | Scr Mat Mat Sto Mat Fac Fac Distress Signals 10 | . 1 1 4 2 . 2 Communications Jammed . | . . . . . . . Distress Signals . | . . . . . . . Times Spotted 116 | . 3 12 31 22 25 23 Peak Tracking Total 10 | . 2 6 10 6 3 5 Tactical Retreats 6 | . 1 1 2 . 1 1 Traps | -11 -10 -9 -9 -8 -7 -6 ------- Run | Scr Mat Mat Sto Mat Fac Fac Traps Triggered 5 | . 1 . . 2 1 1 Indirectly . | . . . . . . . Trap Hack Attempts . | . . . . . . . Triggered . | . . . . . . . Disarmed . | . . . . . . . Reprogrammed . | . . . . . . . Reused . | . . . . . . . Traps Extracted . | . . . . . . . Installed . | . . . . . . . Triggered 1 | . . . 1 . . . Machines | -11 -10 -9 -9 -8 -7 -6 ---------- Run | Scr Mat Mat Sto Mat Fac Fac Machines Disabled 5 | . . . 1 1 2 1 Max in Single Turn 1 | . . . . 1 1 1 Machines Sabotaged . | . . . . . . . Garrisons Compromised . | . . . . . . . Overloaded Fab Kills . | . . . . . . . Fab Network Shutdowns 1 | . . . . . . 1 Hacking | -11 -10 -9 -9 -8 -7 -6 --------- Run | Scr Mat Mat Sto Mat Fac Fac Machines Accessed 19 | . 2 1 5 5 2 4 Terminals 14 | . 2 1 5 4 . 2 Fabricators 1 | . . . . . . 1 Repair Stations 3 | . . . . . 2 1 Recycling Units 1 | . . . . 1 . . Scanalyzers . | . . . . . . . Garrison Access . | . . . . . . . Total Hacks 42 | . 2 2 10 11 6 11 Successful 22 | . . . 3 6 4 9 Failed 20 | . 2 2 7 5 2 2 Catastrophic 5 | . 1 . 1 . 2 1 Database Lockouts . | . . . . . . . Manual . | . . . . . . . Terminals 29 | . 2 2 10 9 . 6 Fabricators 3 | . . . . . . 3 Repair Stations 8 | . . . . . 6 2 Recycling Units 2 | . . . . 2 . . Scanalyzers . | . . . . . . . Garrison Access . | . . . . . . . Terminal Hacks 14 | . . . 3 6 . 5 Record 4 | . . . . 2 . 2 Robot Analysis 1 | . . . . 1 . . Open Door 1 | . . . 1 . . . Emergency Access Points 1 | . . . . . . 1 Alert Level 1 | . . . . 1 . . Unreport Threat 2 | . . . 1 . . 1 Registered Components 1 | . . . . 1 . . Zone Layout 3 | . . . 1 1 . 1 Fabricator Hacks 3 | . . . . . . 3 Network Status 1 | . . . . . . 1 Build 2 | . . . . . . 2 Repair Station Hacks 5 | . . . . . 4 1 Scan Component 4 | . . . . . 3 1 Repair 1 | . . . . . 1 . Recycling Unit Hacks . | . . . . . . . Scanalyzer . | . . . . . . . Garrison Access Hacks . | . . . . . . . Unauthorized Hacks . | . . . . . . . Terminals . | . . . . . . . Fabricators . | . . . . . . . Repair Stations . | . . . . . . . Recycling Units . | . . . . . . . Scanalyzers . | . . . . . . . Garrison Access . | . . . . . . . Data Cores Recovered . | . . . . . . . Used . | . . . . . . . Hacking Detections 15 | . 2 1 4 4 2 2 Full Trace Events 1 | . . . . . 1 . Feedback Events . | . . . . . . . Feedback Blocked . | . . . . . . . Robot Schematics Acquired . | . . . . . . . Robots Built 6 | . . . . . . 6 Matter 438 | . . . . . . 438 Time 232 | . . . . . . 232 Total Robot Build Rating 18 | . . . . . . 18 Part Schematics Acquired . | . . . . . . . Parts Built . | . . . . . . . Matter . | . . . . . . . Time . | . . . . . . . Total Part Build Rating . | . . . . . . . Parts Repaired 1 | . . . . . 1 . Time 30 | . . . . . 30 . Parts Recycled . | . . . . . . . Recycled Matter . | . . . . . . . Retrieved Matter . | . . . . . . . Retrieved Components . | . . . . . . . Parts Scanalyzed . | . . . . . . . Part Schematics Acquired . | . . . . . . . Parts Damaged . | . . . . . . . Bothacking | -11 -10 -9 -9 -8 -7 -6 ------------ Run | Scr Mat Mat Sto Mat Fac Fac Used RIF Installer . | . . . . . . . Robots Hacked . | . . . . . . . Non-combat . | . . . . . . . Combat . | . . . . . . . Robot Hacks Applied . | . . . . . . . Relay Couplers Released . | . . . . . . . Robots Rewired . | . . . . . . . Allies Hacked . | . . . . . . . Hacks Repelled . | . . . . . . . Allies | -11 -10 -9 -9 -8 -7 -6 -------- Run | Scr Mat Mat Sto Mat Fac Fac Total Allies 7 | . . . 1 . . 6 Largest Group 6 | . . . 1 1 . 6 Highest-Rated Group 99 | . . . 99 99 . 96 Highest-Rated Ally 99 | . . . 99 99 . 16 Total Orders . | . . . . . . . Ally Attacks 38 | . . . 7 . . 31 Total Damage 827 | . . . 434 . . 393 Kills 10 | . . . 7 . . 3 Allies Corrupted . | . . . . . . . Allies Melted . | . . . . . . . Intel | -11 -10 -9 -9 -8 -7 -6 ------- Run | Scr Mat Mat Sto Mat Fac Fac Robot Analysis Total 1 | . . . . 1 . . Derelict Logs Recovered . | . . . . . . . Drone Launches . | . . . . . . . Drone Recoveries . | . . . . . . . Exploration | -11 -10 -9 -9 -8 -7 -6 ------------- Run | Scr Mat Mat Sto Mat Fac Fac Turns Passed 5325 | 69 324 255 792 1027 1686 1172 Spaces Moved 2502 | 45 216 99 328 587 733 494 Core 13 | 11 . . 2 . . . Treads 1445 | . . . 37 181 733 494 Legs 1044 | 34 216 99 289 406 . . Wheels . | . . . . . . . Hover . | . . . . . . . Flight . | . . . . . . . Fastest Speed 50 | 50 120 120 120 120 160 160 Average Speed 144 | 102 120 120 126 133 163 161 Slowest Speed 200 | 120 120 120 200 180 180 180 Overloaded Moves . | . . . . . . . Propulsion Burnouts . | . . . . . . . Robots Hopped . | . . . . . . . Cave-ins Triggered . | . . . . . . . Exploration Rate (%) 25 | 3 30 9 60 40 23 14 Regions Visited 6 Branch Regions 1 Pre-discovered Areas . | . . . . . . . Known Exits Taken . | . . . . . . . Unknown Exits Taken 6 | 1 1 1 1 1 1 . Scrap Searched . | . . . . . . . Spaces Dug . | . . . . . . . Terrain Destroyed 55 | . . . 5 5 36 9 Melee . | . . . . . . . Projectile 15 | . . . . 5 1 9 AOE 40 | . . . 5 . 35 . Terrain Rammed . | . . . . . . . Walls Destroyed . | . . . . . . . Machines Disabled . | . . . . . . . Actions | -11 -10 -9 -9 -8 -7 -6 --------- Run | Scr Mat Mat Sto Mat Fac Fac Total 3744 | 60 268 185 574 774 1098 785 Wait 767 | . 40 49 131 82 243 222 Move 2496 | 44 215 98 327 586 732 494 Hop . | . . . . . . . Pick Up 69 | 4 3 3 11 23 16 9 Fast Attach 47 | 7 2 3 12 11 11 1 Attach 24 | . . 2 2 3 10 7 Detach . | . . . . . . . Swap 20 | 1 1 3 3 7 4 1 Drop 76 | 2 1 3 12 28 21 9 Fire 244 | 2 6 24 76 34 61 41 Melee . | . . . . . . . Ram . | . . . . . . . Kick . | . . . . . . . Crush 1 | . . . . . . 1 Escape Stasis . | . . . . . . . Rewire . | . . . . . . . Trap . | . . . . . . . Miscellaneous . | . . . . . . . Route ------- -11/Scrapyard -10/Materials -9/Materials -9/Storage -8/Materials -7/Factory -6/Factory History --------- Turn | Location | Event 11 | -11/Scrapyard | Discovered new exit (range 15) 70 | -11/Scrapyard | Entered Materials 262 | -10/Materials | Discovered new exit (range 13) 318 | -10/Materials | Build established: Mutant 394 | -10/Materials | Entered another Materials area 394 | -9/Materials | Evolved 2 slots: Propulsion x2 431 | -9/Materials | Discovered new exit (range 15) 553 | -9/Materials | Core integrity fell below 50% 649 | -9/Materials | Entered Storage 1007 | -9/Storage | Build established: Scavenger-Mutant 1172 | -9/Storage | Garrison activated, responded to threat 1246 | -9/Storage | Core integrity fell below 20% 1258 | -9/Storage | Lost 3 parts (3n) 1341 | -9/Storage | Destroyed 8 combat bots 1342 | -9/Storage | Lost 6 parts (1p1n1u3w) 1353 | -9/Storage | Met 01-MTF 1434 | -9/Storage | Discovered new exit (range 7) 1441 | -9/Storage | Entered Materials 1441 | -8/Materials | Accompanied by 1 ally (01-MTF) 1441 | -8/Materials | Evolved 2 slots: Utility x1, Weapon x1 1446 | -8/Materials | 01-MTF left 1776 | -8/Materials | Build established: Scavenger-Tank 2362 | -8/Materials | Discovered new exit (range 8) 2373 | -8/Materials | Build established: Tank 2468 | -8/Materials | Entered Factory 2468 | -7/Factory | Evolved 2 slots: Utility x2 2544 | -7/Factory | Garrison activated, responded to threat 3058 | -7/Factory | Build established: Gunner 3293 | -7/Factory | Repaired Broken Med. Treads 4109 | -7/Factory | Discovered new exit (range 18) 4154 | -7/Factory | Entered another Factory area 4154 | -6/Factory | Evolved 2 slots: Utility x2 4182 | -6/Factory | Found Hvy. Reflective Plating 4314 | -6/Factory | Fabricated G-47 Trooper (x3) 4320 | -6/Factory | Build established: Scavenger-Skirmisher 4412 | -6/Factory | Garrison activated, responded to threat 4439 | -6/Factory | Fabricated G-47 Trooper (x3) 4857 | -6/Factory | Local fabrication network quarantined 5321 | -6/Factory | Core integrity fell below 50% 5323 | -6/Factory | Core integrity fell below 20% 5326 | -6/Factory | Self-destructed Last Messages --------------- 05316_ R-10 Processor collects Lgt. Deuterium Engine. 05317_ K-01 Serf collects debris. 05318_ Overheating: Matter decay (-17). 05319_ Overheating: Broken Lgt. Treads damaged (-3). 05320_ Destroyed Hpw. Tractor Beam. 05320_ K-01 Serf collects debris. [Achievement: Hey, That's Mine!] 05321_ Overheating: Core damaged (-170). 05321_ Broken Pulse Rifle destroyed. 05322_ Overheating: Core damaged (-110). 05323_ Med. Treads destroyed. 05323_ K-01 Serf collects debris. 05323_ R-10 Processor collects Carbon-fiber Leg. 05324_ Power failure, Imp. Deuterium Engine shutdown. 05324_ Overheating: Energy bleed (-4). 05324_ U-05 Engineer builds a Wall. 05325_ Overheating: Core damaged (-136). 05325_ Hvy. Plasma Cannon destroyed. 05325_ Broken Lgt. Treads destroyed. 05326_ Overheating: Energy bleed (-5). Map ----- +----------------------------------------------------+ | ?????????????????????????????????????????????????? | | ?????????????????????????????????????????????????? | | ?????????????????????????????????????#?????#???#?? | | ????????????????????????????????????? ????###??### | | ?????????????????????????????????????? ?????###?## | | ????????????????????????????????? ? ?? ?????###?#? | | ??????????????????? ? ? ???? ? ??? ?#??##?####? | | ?????????????????? ? ? ?# ? ?T" # | | ??????????????? ?# ? ? # ?? """ ####?##?#?# | | ??????????????#???#?? ? #####?#############?###?? | | ????????????#???##?? ? ???? ? #######???#?# | | ???????????#?###?#? ? ? ? ?? ? ? ?## | | ??????????#?#?#####??? ? ? ??? ? ## | | ???????????####??#?###?#?##?#??### #? | | ???????????#?##?##?#?#???? ? ??## ? | | ?????????#?######?#?## "?" "T??### ############# | | ?????????##??????##??# ??" ?### ?#?###??##### | | ??????????###?#??###?? """? ### ?############ | | ???????#######?###?### ? ? #?# ##### # | | ??????##?#??#??####?## ?? ## ##### = # | | ??????#?#?? ??? ? ? ? ? ? ### # | | ????????+ ? ? ?? ? ? ??#?# + | | ??????##?? ?? ?? ##?#?######## # | | ????????# ? ? ?? ##################+## # | | ??????????? ??? ? ? # Y% ## # | | ????????? ? ?? ? ?# @ ### ## | | ?????????? ?? ? # !% R ### ## | | ??????### ? ??? # % Rk""""" """"" ### ## | | ?????????? ??? ? ; g% """"" """"" ### ## | | ???????#? ? ? ?? %+ = """ """ ### ## | | ????????# ??? ?? u # ### #? | | ???????#??? ?? # ### ## | | ???????#???#??####+#?#################### | | ???????#?##?#?? ?? | | ???????????### ? ??? | | ?????????????# ? ? ? | | ????????? ?? ? ??? ?? | | ????????? ? ? ?? ?? ? | | ??????????? ?? ??? ? | | ??????????????? ? ? ?? ? | | ???????????? ?????? ????#?##??######+#### | | ?????????????? ? ? #??#### ? ########## | | ??????????????? ???? ?#??##?? ? ########## | | ???????????????????? ?????## ?? ? ##?####### | | ???????????????????? ?##?#?# ?? ? ########## | | ??????????????????????????????? ? ########## | | ???????????????????????????????? ? ########## | | ?????????????????????????????????? ########## | | ??????????????????????????????? ?? ########## | | ?????????????????????????????????? ########## | +----------------------------------------------------+ Best States ------------- Heat Dissipation 37 Energy Generation 16 Energy Capacity 290 Matter Stores 388 Matter Capacity 450 Sight Range 20 Robot Scan Range 20 Terrain Scan Range 20 Terrain Scan Density 210 Armor Coverage 600 Resistance: TH 25 Evasion (%) 50 Targeting Accuracy 8 Recoil Reduction 4 Particle Charging 15 Item Schematics ----------------- None Robot Schematics ------------------ None Fabricated ------------ G-47 Trooper | x3 | -6/Factory | Preloaded G-47 Trooper | x3 | -6/Factory | Preloaded Alien Tech Used ----------------- None Achievements -------------- Close Call Hey, That's Mine! My Command Is Your Wish Omniscient Cartographer The More The Merrier Challenges ------------ None Game ------ Seed UtilityBackupScanner Manual? 0 Play Time 01:18:52 Cumulative 8.8 hours Start 2021.08.15 @ 10:06:00 End 2021.08.15 @ 11:22:52 Sessions 1 Manual Loads 0 Difficulty Rogue Special Mode None Game No. 9 Rogue 9 Adventurer 0 Explorer 0 Win Type - Total 0 Types 0/0/0/0/0/0/0/0/0 Lore% 6 Gallery% 14 Achievement% 12 Wizard Run 0 Options --------- ASCII 0 Keyboard 0 Movement Mouse Keybinds 0 Fullscreen 2 Font 18/SmallcapsGlow Map View 76x50 Tactical HUD 1 Map Filters NONE Filters NONE Steam 1 RUN: 0c53cf00-ee96-4b41-a634-1a28b45b07af